[Event "Titled Tuesday Blitz August 16 Early 2022"]
[White "Ferriz Barrios, Andres"]
[Black "Delorme, Axel"]
[WhiteFideId "5104467"]
[BlackFideId "632023"]
[WhiteElo "2102"]
[BlackElo "2474"]
[Result "0-1"]
[Round "10"]
[TimeControl "180+2"]
[Date "2022.08.18"]
[WhiteClock "0:00:00"]
[BlackClock "0:00:00"]

1. d4 {[%clk 0:00:00]}  Nf6 {[%clk 0:00:00]} 2. Nf3 {[%clk 0:00:00]}  e6 {[%clk 0:00:00]} 3. e3 {[%clk 0:00:00]}  b6 {[%clk 0:00:00]} 4. Nbd2 {[%clk 0:00:00]}  Bb7 {[%clk 0:00:00]} 5. Bd3 {[%clk 0:00:00]}  c5 {[%clk 0:00:00]} 6. c3 {[%clk 0:00:00]}  Be7 {[%clk 0:00:00]} 7. O-O {[%clk 0:00:00]}  O-O {[%clk 0:00:00]} 8. Qe2 {[%clk 0:00:00]}  d6 {[%clk 0:00:00]} 9. Re1 {[%clk 0:00:00]}  Nc6 {[%clk 0:00:00]} 10. dxc5 {[%clk 0:00:00]}  dxc5 {[%clk 0:00:00]} 11. e4 {[%clk 0:00:00]}  Qd7 {[%clk 0:00:00]} 12. Nf1 {[%clk 0:00:00]}  Rfd8 {[%clk 0:00:00]} 13. Rd1 {[%clk 0:00:00]}  c4 {[%clk 0:00:00]} 14. Bc2 {[%clk 0:00:00]}  Qc7 {[%clk 0:00:00]} 15. Bg5 {[%clk 0:00:00]}  b5 {[%clk 0:00:00]} 16. Ng3 {[%clk 0:00:00]}  Ne5 {[%clk 0:00:00]} 17. Nxe5 {[%clk 0:00:00]}  Qxe5 {[%clk 0:00:00]} 18. f4 {[%clk 0:00:00]}  Qc5+ {[%clk 0:00:00]} 19. Kh1 {[%clk 0:00:00]}  h6 {[%clk 0:00:00]} 20. Rac1 {[%clk 0:00:00]}  hxg5 {[%clk 0:00:00]} 21. e5 {[%clk 0:00:00]}  Nd5 {[%clk 0:00:00]} 22. Qh5 {[%clk 0:00:00]}  f5 {[%clk 0:00:00]} 23. Nxf5 {[%clk 0:00:00]}  Nxf4 {[%clk 0:00:00]} 24. Nxe7+ {[%clk 0:00:00]}  Qxe7 {[%clk 0:00:00]} 25. Qh7+ {[%clk 0:00:00]}  Kf8 {[%clk 0:00:00]} 26. Bg6 {[%clk 0:00:00]}  Bxg2+ {[%clk 0:00:00]} 27. Kg1 {[%clk 0:00:00]}  Qc5+ {[%clk 0:00:00]} 28. Rd4 {[%clk 0:00:00]}  Nxg6 {[%clk 0:00:00]} 29. Qxg6 {[%clk 0:00:00]}  Rxd4 {[%clk 0:00:00]} 30. cxd4 {[%clk 0:00:00]}  Qd5 {[%clk 0:00:00]} 31. Qxg5 {[%clk 0:00:00]}  Be4 {[%clk 0:00:00]} 32. Rf1+ {[%clk 0:00:00]}  Bf5 {[%clk 0:00:00]} 33. Rf4 {[%clk 0:00:00]}  c3 {[%clk 0:00:00]} 34. Rh4 {[%clk 0:00:00]}  cxb2 {[%clk 0:00:00]} 35. Rh8+ {[%clk 0:00:00]}  Kf7 {[%clk 0:00:00]} 36. Qh5+ {[%clk 0:00:00]}  Ke7 {[%clk 0:00:00]} 37. Qg5+ {[%clk 0:00:00]}  Kd7 {[%clk 0:00:00]} 38. Qxg7+ {[%clk 0:00:00]}  Kc6 {[%clk 0:00:00]} 39. Rxa8 {[%clk 0:00:00]}  b1=Q+ {[%clk 0:00:00]} 40. Kf2 {[%clk 0:00:00]}  Qxd4+ {[%clk 0:00:00]} 41. Ke2 {[%clk 0:00:00]}  Qc2+ {[%clk 0:00:00]} 42. Kf3 {[%clk 0:00:00]}  Qcc3+ {[%clk 0:00:00]} 43. Kg2 {[%clk 0:00:00]}  Qdd2+ {[%clk 0:00:00]} 44. Kh1 {[%clk 0:00:00]}  Qcc1+ {[%clk 0:00:00]} 45. Qg1 {[%clk 0:00:00]}  Be4# {[%clk 0:00:00]} 0-1


[Site "https://www.chess.com"]

[Event "Titled Tuesday Blitz August 16 Early 2022"]
[White "Floresvillar Gonzalez, Luis Migu"]
[Black "Novikova, Galina"]
[WhiteFideId "5100542"]
[BlackFideId "4157095"]
[WhiteElo "2040"]
[BlackElo "1923"]
[Result "0-1"]
[Round "10"]
[TimeControl "180+2"]
[Date "2022.08.18"]
[WhiteClock "0:00:00"]
[BlackClock "0:00:00"]

1. d4 {[%clk 0:00:00]}  Nf6 {[%clk 0:00:00]} 2. c3 {[%clk 0:00:00]}  c5 {[%clk 0:00:00]} 3. Bg5 {[%clk 0:00:00]}  Ne4 {[%clk 0:00:00]} 4. h4 {[%clk 0:00:00]}  cxd4 {[%clk 0:00:00]} 5. cxd4 {[%clk 0:00:00]}  Nxg5 {[%clk 0:00:00]} 6. hxg5 {[%clk 0:00:00]}  Nc6 {[%clk 0:00:00]} 7. d5 {[%clk 0:00:00]}  Qa5+ {[%clk 0:00:00]} 8. Nc3 {[%clk 0:00:00]}  Ne5 {[%clk 0:00:00]} 9. e3 {[%clk 0:00:00]}  d6 {[%clk 0:00:00]} 10. f4 {[%clk 0:00:00]}  Ng6 {[%clk 0:00:00]} 11. Bb5+ {[%clk 0:00:00]}  Bd7 {[%clk 0:00:00]} 12. Bxd7+ {[%clk 0:00:00]}  Kxd7 {[%clk 0:00:00]} 13. Qg4+ {[%clk 0:00:00]}  Ke8 {[%clk 0:00:00]} 14. Nf3 {[%clk 0:00:00]}  Qb6 {[%clk 0:00:00]} 15. Nd1 {[%clk 0:00:00]}  Qb5 {[%clk 0:00:00]} 16. Kf2 {[%clk 0:00:00]}  Qxd5 {[%clk 0:00:00]} 17. Nc3 {[%clk 0:00:00]}  Qa5 {[%clk 0:00:00]} 18. Rad1 {[%clk 0:00:00]}  e6 {[%clk 0:00:00]} 19. Nd4 {[%clk 0:00:00]}  h5 {[%clk 0:00:00]} 20. gxh6 {[%clk 0:00:00]}  Rxh6 {[%clk 0:00:00]} 21. Rxh6 {[%clk 0:00:00]}  gxh6 {[%clk 0:00:00]} 22. Nxe6 {[%clk 0:00:00]}  fxe6 {[%clk 0:00:00]} 23. Qxg6+ {[%clk 0:00:00]}  Kd7 {[%clk 0:00:00]} 24. Qh7+ {[%clk 0:00:00]}  Be7 {[%clk 0:00:00]} 25. Qxh6 {[%clk 0:00:00]}  Qf5 {[%clk 0:00:00]} 26. Qh3 {[%clk 0:00:00]}  Qg6 {[%clk 0:00:00]} 27. Qf3 {[%clk 0:00:00]}  Rb8 {[%clk 0:00:00]} 28. Ne4 {[%clk 0:00:00]}  d5 {[%clk 0:00:00]} 29. Nc5+ {[%clk 0:00:00]}  Bxc5 {[%clk 0:00:00]} 30. Rc1 {[%clk 0:00:00]}  Bd6 {[%clk 0:00:00]} 31. f5 {[%clk 0:00:00]}  Qxf5 {[%clk 0:00:00]} 32. Qxf5 {[%clk 0:00:00]}  exf5 {[%clk 0:00:00]} 33. Kf3 {[%clk 0:00:00]}  Rc8 {[%clk 0:00:00]} 34. Rxc8 {[%clk 0:00:00]}  Kxc8 {[%clk 0:00:00]} 0-1


[Site "https://www.chess.com"]

[Event "Titled Tuesday Blitz August 16 Early 2022"]
[White "Gheorghiu, Calin"]
[Black "Aldokhin, Ivan"]
[WhiteFideId "1200305"]
[BlackFideId "24115720"]
[WhiteElo "2168"]
[BlackElo "2246"]
[Result "1-0"]
[Round "10"]
[TimeControl "180+2"]
[Date "2022.08.18"]
[WhiteClock "0:00:00"]
[BlackClock "0:00:00"]

1. d4 {[%clk 0:00:00]}  Nf6 {[%clk 0:00:00]} 2. Nc3 {[%clk 0:00:00]}  g6 {[%clk 0:00:00]} 3. e4 {[%clk 0:00:00]}  d6 {[%clk 0:00:00]} 4. f4 {[%clk 0:00:00]}  Bg7 {[%clk 0:00:00]} 5. Nf3 {[%clk 0:00:00]}  c6 {[%clk 0:00:00]} 6. Bd3 {[%clk 0:00:00]}  Bg4 {[%clk 0:00:00]} 7. h3 {[%clk 0:00:00]}  Bxf3 {[%clk 0:00:00]} 8. Qxf3 {[%clk 0:00:00]}  e5 {[%clk 0:00:00]} 9. Be3 {[%clk 0:00:00]}  O-O {[%clk 0:00:00]} 10. O-O-O {[%clk 0:00:00]}  Nbd7 {[%clk 0:00:00]} 11. g4 {[%clk 0:00:00]}  b5 {[%clk 0:00:00]} 12. g5 {[%clk 0:00:00]}  Nh5 {[%clk 0:00:00]} 13. dxe5 {[%clk 0:00:00]}  dxe5 {[%clk 0:00:00]} 14. f5 {[%clk 0:00:00]}  Re8 {[%clk 0:00:00]} 15. Rhf1 {[%clk 0:00:00]}  Nf4 {[%clk 0:00:00]} 16. Bxf4 {[%clk 0:00:00]}  exf4 {[%clk 0:00:00]} 17. f6 {[%clk 0:00:00]}  Ne5 {[%clk 0:00:00]} 18. Qxf4 {[%clk 0:00:00]}  Bf8 {[%clk 0:00:00]} 19. h4 {[%clk 0:00:00]}  Qa5 {[%clk 0:00:00]} 20. Kb1 {[%clk 0:00:00]}  b4 {[%clk 0:00:00]} 21. Ne2 {[%clk 0:00:00]}  c5 {[%clk 0:00:00]} 22. Nc1 {[%clk 0:00:00]}  c4 {[%clk 0:00:00]} 23. Be2 {[%clk 0:00:00]}  Rac8 {[%clk 0:00:00]} 24. h5 {[%clk 0:00:00]}  b3 {[%clk 0:00:00]} 25. axb3 {[%clk 0:00:00]}  c3 {[%clk 0:00:00]} 26. hxg6 {[%clk 0:00:00]}  Nxg6 {[%clk 0:00:00]} 27. Qh2 {[%clk 0:00:00]}  cxb2 {[%clk 0:00:00]} 28. Na2 {[%clk 0:00:00]}  Rxc2 {[%clk 0:00:00]} 29. Rh1 {[%clk 0:00:00]}  h6 {[%clk 0:00:00]} 30. gxh6 {[%clk 0:00:00]}  Rxe4 {[%clk 0:00:00]} 31. h7+ {[%clk 0:00:00]}  Kh8 {[%clk 0:00:00]} 32. Rhe1 {[%clk 0:00:00]}  Bb4 {[%clk 0:00:00]} 33. Nxb4 {[%clk 0:00:00]}  Qa1+ {[%clk 0:00:00]} 34. Kxc2 {[%clk 0:00:00]}  b1=Q+ {[%clk 0:00:00]} 35. Rxb1 {[%clk 0:00:00]}  Qd4 {[%clk 0:00:00]} 36. Qb8+ {[%clk 0:00:00]}  Kxh7 {[%clk 0:00:00]} 37. Rh1+ {[%clk 0:00:00]}  Nh4 {[%clk 0:00:00]} 38. Bd3 {[%clk 0:00:00]}  Qf2+ {[%clk 0:00:00]} 39. Kc3 {[%clk 0:00:00]}  Qd4+ {[%clk 0:00:00]} 40. Kc2 {[%clk 0:00:00]}  Qf2+ {[%clk 0:00:00]} 41. Kc1 {[%clk 0:00:00]}  Qe3+ {[%clk 0:00:00]} 42. Kb2 {[%clk 0:00:00]}  Qd4+ {[%clk 0:00:00]} 43. Ka2 {[%clk 0:00:00]}  Qf2+ {[%clk 0:00:00]} 44. Rb2 {[%clk 0:00:00]}  Qd4 {[%clk 0:00:00]} 45. Bxe4+ {[%clk 0:00:00]}  Qxe4 {[%clk 0:00:00]} 46. Rxh4+ {[%clk 0:00:00]}  Qxh4 {[%clk 0:00:00]} 47. Rh2 {[%clk 0:00:00]} 1-0


[Site "https://www.chess.com"]

[Event "Titled Tuesday Blitz August 16 Early 2022"]
[White "Goltseva, Ekaterina"]
[Black "Mikhalsky, Vladimir"]
[WhiteFideId "24173770"]
[BlackFideId "14144352"]
[WhiteElo "2086"]
[BlackElo "2301"]
[Result "1-0"]
[Round "10"]
[TimeControl "180+2"]
[Date "2022.08.18"]
[WhiteClock "0:00:00"]
[BlackClock "0:00:00"]

1. d4 {[%clk 0:00:00]}  Nf6 {[%clk 0:00:00]} 2. c4 {[%clk 0:00:00]}  g6 {[%clk 0:00:00]} 3. Nc3 {[%clk 0:00:00]}  Bg7 {[%clk 0:00:00]} 4. e4 {[%clk 0:00:00]}  O-O {[%clk 0:00:00]} 5. Nge2 {[%clk 0:00:00]}  d6 {[%clk 0:00:00]} 6. Ng3 {[%clk 0:00:00]}  e5 {[%clk 0:00:00]} 7. d5 {[%clk 0:00:00]}  h5 {[%clk 0:00:00]} 8. Bg5 {[%clk 0:00:00]}  Qe8 {[%clk 0:00:00]} 9. h4 {[%clk 0:00:00]}  Nh7 {[%clk 0:00:00]} 10. Bd2 {[%clk 0:00:00]}  Na6 {[%clk 0:00:00]} 11. Be2 {[%clk 0:00:00]}  Bf6 {[%clk 0:00:00]} 12. Nf1 {[%clk 0:00:00]}  Qe7 {[%clk 0:00:00]} 13. g4 {[%clk 0:00:00]}  hxg4 {[%clk 0:00:00]} 14. h5 {[%clk 0:00:00]}  Bg5 {[%clk 0:00:00]} 15. Bxg4 {[%clk 0:00:00]}  Nc5 {[%clk 0:00:00]} 16. Bxc8 {[%clk 0:00:00]}  Raxc8 {[%clk 0:00:00]} 17. Be3 {[%clk 0:00:00]}  a6 {[%clk 0:00:00]} 18. b4 {[%clk 0:00:00]}  Nd7 {[%clk 0:00:00]} 19. Qg4 {[%clk 0:00:00]}  f5 {[%clk 0:00:00]} 20. Qg2 {[%clk 0:00:00]}  f4 {[%clk 0:00:00]} 21. hxg6 {[%clk 0:00:00]}  fxe3 {[%clk 0:00:00]} 22. gxh7+ {[%clk 0:00:00]}  Kh8 {[%clk 0:00:00]} 23. Nxe3 {[%clk 0:00:00]}  Bxe3 {[%clk 0:00:00]} 24. fxe3 {[%clk 0:00:00]}  Nb6 {[%clk 0:00:00]} 25. Qe2 {[%clk 0:00:00]}  Qf7 {[%clk 0:00:00]} 26. c5 {[%clk 0:00:00]}  dxc5 {[%clk 0:00:00]} 27. bxc5 {[%clk 0:00:00]}  Nd7 {[%clk 0:00:00]} 28. Na4 {[%clk 0:00:00]}  Qe7 {[%clk 0:00:00]} 29. Rc1 {[%clk 0:00:00]}  b5 {[%clk 0:00:00]} 30. c6 {[%clk 0:00:00]}  bxa4 {[%clk 0:00:00]} 31. cxd7 {[%clk 0:00:00]}  Qxd7 {[%clk 0:00:00]} 32. Qh5 {[%clk 0:00:00]}  Qe7 {[%clk 0:00:00]} 33. Ke2 {[%clk 0:00:00]}  Rce8 {[%clk 0:00:00]} 34. Rcg1 {[%clk 0:00:00]}  Qf7 {[%clk 0:00:00]} 35. Rg8+ {[%clk 0:00:00]} 1-0


[Site "https://www.chess.com"]

[Event "Titled Tuesday Blitz August 16 Early 2022"]
[White "Gonzalez Vega, Alejandro"]
[Black "Wan, Joseph"]
[WhiteFideId "3510042"]
[BlackFideId "2069890"]
[WhiteElo "2092"]
[BlackElo "2198"]
[Result "0-1"]
[Round "10"]
[TimeControl "180+2"]
[Date "2022.08.18"]
[WhiteClock "0:00:00"]
[BlackClock "0:00:00"]

1. e4 {[%clk 0:00:00]}  g6 {[%clk 0:00:00]} 2. d4 {[%clk 0:00:00]}  Bg7 {[%clk 0:00:00]} 3. Nc3 {[%clk 0:00:00]}  d6 {[%clk 0:00:00]} 4. h4 {[%clk 0:00:00]}  h5 {[%clk 0:00:00]} 5. Be2 {[%clk 0:00:00]}  a6 {[%clk 0:00:00]} 6. Be3 {[%clk 0:00:00]}  b5 {[%clk 0:00:00]} 7. a3 {[%clk 0:00:00]}  Nd7 {[%clk 0:00:00]} 8. Qd2 {[%clk 0:00:00]}  Bb7 {[%clk 0:00:00]} 9. f3 {[%clk 0:00:00]}  Rc8 {[%clk 0:00:00]} 10. Nh3 {[%clk 0:00:00]}  c5 {[%clk 0:00:00]} 11. Ng5 {[%clk 0:00:00]}  Ngf6 {[%clk 0:00:00]} 12. Rd1 {[%clk 0:00:00]}  cxd4 {[%clk 0:00:00]} 13. Bxd4 {[%clk 0:00:00]}  O-O {[%clk 0:00:00]} 14. O-O {[%clk 0:00:00]}  Nb6 {[%clk 0:00:00]} 15. Rfe1 {[%clk 0:00:00]}  Nc4 {[%clk 0:00:00]} 16. Bxc4 {[%clk 0:00:00]}  Rxc4 {[%clk 0:00:00]} 17. Be3 {[%clk 0:00:00]}  Nd7 {[%clk 0:00:00]} 18. Qf2 {[%clk 0:00:00]}  Ne5 {[%clk 0:00:00]} 19. Bd4 {[%clk 0:00:00]}  Qc8 {[%clk 0:00:00]} 20. Rd2 {[%clk 0:00:00]}  Qd7 {[%clk 0:00:00]} 21. b3 {[%clk 0:00:00]}  Rc7 {[%clk 0:00:00]} 22. Nd5 {[%clk 0:00:00]}  Bxd5 {[%clk 0:00:00]} 23. exd5 {[%clk 0:00:00]}  Rfc8 {[%clk 0:00:00]} 24. Ree2 {[%clk 0:00:00]}  a5 {[%clk 0:00:00]} 25. Ne4 {[%clk 0:00:00]}  a4 {[%clk 0:00:00]} 26. Kh2 {[%clk 0:00:00]}  Qf5 {[%clk 0:00:00]} 27. Ng5 {[%clk 0:00:00]}  Qf4+ {[%clk 0:00:00]} 28. Qg3 {[%clk 0:00:00]}  Qf5 {[%clk 0:00:00]} 29. Ne4 {[%clk 0:00:00]}  Ra8 {[%clk 0:00:00]} 30. Nc3 {[%clk 0:00:00]}  axb3 {[%clk 0:00:00]} 31. cxb3 {[%clk 0:00:00]}  Bh6 {[%clk 0:00:00]} 32. Nxb5 {[%clk 0:00:00]}  Bf4 {[%clk 0:00:00]} 33. Nxc7 {[%clk 0:00:00]}  Bxg3+ {[%clk 0:00:00]} 34. Kxg3 {[%clk 0:00:00]}  Rxa3 {[%clk 0:00:00]} 35. Kf2 {[%clk 0:00:00]}  Rxb3 {[%clk 0:00:00]} 36. Ne8 {[%clk 0:00:00]}  Nxf3 {[%clk 0:00:00]} 37. gxf3 {[%clk 0:00:00]}  Rxf3+ {[%clk 0:00:00]} 38. Kg1 {[%clk 0:00:00]}  Rf1+ {[%clk 0:00:00]} 39. Kg2 {[%clk 0:00:00]}  Qf3+ {[%clk 0:00:00]} 40. Kh2 {[%clk 0:00:00]}  Rh1# {[%clk 0:00:00]} 0-1


[Site "https://www.chess.com"]

[Event "Titled Tuesday Blitz August 16 Early 2022"]
[White "Grandelius, Nils"]
[Black "Shimanov, Aleksandr"]
[WhiteFideId "1710400"]
[BlackFideId "4198603"]
[WhiteElo "2617"]
[BlackElo "2605"]
[Result "1/2-1/2"]
[Round "10"]
[TimeControl "180+1"]
[Date "2022.08.16"]
[WhiteClock "0:00:11"]
[BlackClock "0:00:04"]

1. Nf3 {[%clk 0:03:00]}  Nf6 {[%clk 0:02:59]} 2. g3 {[%clk 0:03:00]}  g6 {[%clk 0:02:59]} 3. Bg2 {[%clk 0:02:59]}  Bg7 {[%clk 0:03:00]} 4. O-O {[%clk 0:03:00]}  O-O {[%clk 0:03:01]} 5. d4 {[%clk 0:03:01]}  d6 {[%clk 0:03:01]} 6. Re1 {[%clk 0:03:01]}  Nc6 {[%clk 0:02:52]} 7. d5 {[%clk 0:03:01]}  Nb8 {[%clk 0:02:47]} 8. e4 {[%clk 0:03:00]}  Bg4 {[%clk 0:02:47]} 9. Nbd2 {[%clk 0:03:00]}  e5 {[%clk 0:02:39]} 10. c4 {[%clk 0:02:53]}  a5 {[%clk 0:02:36]} 11. h3 {[%clk 0:02:50]}  Bd7 {[%clk 0:02:28]} 12. c5 {[%clk 0:02:40]}  Na6 {[%clk 0:02:28]} 13. cxd6 {[%clk 0:02:40]}  cxd6 {[%clk 0:02:29]} 14. Nc4 {[%clk 0:02:40]}  b5 {[%clk 0:02:09]} 15. Nxd6 {[%clk 0:02:02]}  Qb6 {[%clk 0:02:07]} 16. Nxf7 {[%clk 0:01:52]}  Rxf7 {[%clk 0:01:55]} 17. Nxe5 {[%clk 0:01:53]}  Re7 {[%clk 0:01:01]} 18. Nd3 {[%clk 0:01:48]}  Nxe4 {[%clk 0:00:28]} 19. Bxe4 {[%clk 0:01:38]}  Rae8 {[%clk 0:00:28]} 20. Be3 {[%clk 0:01:38]}  Qf6 {[%clk 0:00:22]} 21. Bg2 {[%clk 0:01:36]}  Bf5 {[%clk 0:00:21]} 22. Rc1 {[%clk 0:01:23]}  Bxd3 {[%clk 0:00:17]} 23. Qxd3 {[%clk 0:01:24]}  Qxb2 {[%clk 0:00:14]} 24. d6 {[%clk 0:01:24]}  Rd7 {[%clk 0:00:13]} 25. Bc6 {[%clk 0:01:16]}  Nb4 {[%clk 0:00:10]} 26. Qxb5 {[%clk 0:01:14]}  Nxc6 {[%clk 0:00:10]} 27. Qxc6 {[%clk 0:01:15]}  Red8 {[%clk 0:00:10]} 28. Bg5 {[%clk 0:01:09]}  Bd4 {[%clk 0:00:04]} 29. Rc2 {[%clk 0:01:09]}  Qb4 {[%clk 0:00:04]} 30. Rd1 {[%clk 0:01:03]}  Rxd6 {[%clk 0:00:04]} 31. Qc4+ {[%clk 0:00:19]}  Qxc4 {[%clk 0:00:04]} 32. Rxc4 {[%clk 0:00:20]}  Bxf2+ {[%clk 0:00:05]} 33. Kxf2 {[%clk 0:00:21]}  Rxd1 {[%clk 0:00:05]} 34. Bxd8 {[%clk 0:00:21]}  Rxd8 {[%clk 0:00:06]} 35. a4 {[%clk 0:00:20]}  Rd2+ {[%clk 0:00:05]} 36. Kf3 {[%clk 0:00:21]}  Ra2 {[%clk 0:00:06]} 37. h4 {[%clk 0:00:20]}  Ra3+ {[%clk 0:00:06]} 38. Kf4 {[%clk 0:00:19]}  Kf7 {[%clk 0:00:06]} 39. Rc7+ {[%clk 0:00:17]}  Kf6 {[%clk 0:00:07]} 40. Rc6+ {[%clk 0:00:13]}  Kf7 {[%clk 0:00:07]} 41. Rc7+ {[%clk 0:00:13]}  Kf6 {[%clk 0:00:07]} 42. Rxh7 {[%clk 0:00:12]}  Rxa4+ {[%clk 0:00:07]} 43. Kf3 {[%clk 0:00:13]}  Ra3+ {[%clk 0:00:07]} 44. Kg4 {[%clk 0:00:13]}  Ra4+ {[%clk 0:00:07]} 45. Kh3 {[%clk 0:00:13]}  Ra1 {[%clk 0:00:07]} 46. Ra7 {[%clk 0:00:13]}  a4 {[%clk 0:00:03]} 47. Kg4 {[%clk 0:00:13]}  Rb1 {[%clk 0:00:01]} 48. Rxa4 {[%clk 0:00:11]}  Rb5 {[%clk 0:00:01]} 49. Ra6+ {[%clk 0:00:10]}  Kg7 {[%clk 0:00:02]} 50. Re6 {[%clk 0:00:09]}  Rb4+ {[%clk 0:00:02]} 51. Kg5 {[%clk 0:00:08]}  Rb5+ {[%clk 0:00:03]} 52. Kf4 {[%clk 0:00:08]}  Rf5+ {[%clk 0:00:03]} 53. Kg4 {[%clk 0:00:08]}  Rf1 {[%clk 0:00:03]} 54. Re4 {[%clk 0:00:08]}  Kh6 {[%clk 0:00:03]} 55. Rf4 {[%clk 0:00:08]}  Ra1 {[%clk 0:00:03]} 56. Rf6 {[%clk 0:00:08]}  Ra4+ {[%clk 0:00:03]} 57. Kh3 {[%clk 0:00:08]}  Kg7 {[%clk 0:00:03]} 58. Rb6 {[%clk 0:00:09]}  Rc4 {[%clk 0:00:03]} 59. Re6 {[%clk 0:00:08]}  Rb4 {[%clk 0:00:04]} 60. g4 {[%clk 0:00:08]}  Rb3+ {[%clk 0:00:03]} 61. Kg2 {[%clk 0:00:08]}  Ra3 {[%clk 0:00:04]} 62. Kf2 {[%clk 0:00:09]}  Rh3 {[%clk 0:00:03]} 63. h5 {[%clk 0:00:09]}  gxh5 {[%clk 0:00:03]} 64. gxh5 {[%clk 0:00:10]}  Rxh5 {[%clk 0:00:04]} 65. Re3 {[%clk 0:00:09]}  Rg5 {[%clk 0:00:04]} 66. Rf3 {[%clk 0:00:10]}  Kg6 {[%clk 0:00:04]} 67. Rg3 {[%clk 0:00:11]}  Rxg3 {[%clk 0:00:04]} 68. Kxg3 {[%clk 0:00:11]} 1/2-1/2


[Site "https://www.chess.com"]

[Event "Titled Tuesday Blitz August 16 Early 2022"]
[White "Horak, Martin"]
[Black "Clawitter, Craig"]
[WhiteFideId "367095"]
[BlackFideId "2023105"]
[WhiteElo "1997"]
[BlackElo "2050"]
[Result "1-0"]
[Round "10"]
[TimeControl "180+2"]
[Date "2022.08.18"]
[WhiteClock "0:00:00"]
[BlackClock "0:00:00"]

1. Nf3 {[%clk 0:00:00]}  Nf6 {[%clk 0:00:00]} 2. c4 {[%clk 0:00:00]}  e6 {[%clk 0:00:00]} 3. Nc3 {[%clk 0:00:00]}  d5 {[%clk 0:00:00]} 4. e3 {[%clk 0:00:00]}  c6 {[%clk 0:00:00]} 5. b3 {[%clk 0:00:00]}  Nbd7 {[%clk 0:00:00]} 6. Bb2 {[%clk 0:00:00]}  Bd6 {[%clk 0:00:00]} 7. d4 {[%clk 0:00:00]}  O-O {[%clk 0:00:00]} 8. Be2 {[%clk 0:00:00]}  b6 {[%clk 0:00:00]} 9. O-O {[%clk 0:00:00]}  Bb7 {[%clk 0:00:00]} 10. Qc2 {[%clk 0:00:00]}  Re8 {[%clk 0:00:00]} 11. Rad1 {[%clk 0:00:00]}  Rc8 {[%clk 0:00:00]} 12. Rfe1 {[%clk 0:00:00]}  Qe7 {[%clk 0:00:00]} 13. Bf1 {[%clk 0:00:00]}  e5 {[%clk 0:00:00]} 14. dxe5 {[%clk 0:00:00]}  Nxe5 {[%clk 0:00:00]} 15. Nd4 {[%clk 0:00:00]}  Ba3 {[%clk 0:00:00]} 16. Nf5 {[%clk 0:00:00]}  Qf8 {[%clk 0:00:00]} 17. cxd5 {[%clk 0:00:00]}  cxd5 {[%clk 0:00:00]} 18. Bxa3 {[%clk 0:00:00]}  Qxa3 {[%clk 0:00:00]} 19. Qd2 {[%clk 0:00:00]}  a6 {[%clk 0:00:00]} 20. Rc1 {[%clk 0:00:00]}  g6 {[%clk 0:00:00]} 21. Nd4 {[%clk 0:00:00]}  Ne4 {[%clk 0:00:00]} 22. Nxe4 {[%clk 0:00:00]}  dxe4 {[%clk 0:00:00]} 23. Be2 {[%clk 0:00:00]}  Red8 {[%clk 0:00:00]} 24. Rxc8 {[%clk 0:00:00]}  Rxc8 {[%clk 0:00:00]} 25. h3 {[%clk 0:00:00]}  Qd6 {[%clk 0:00:00]} 26. Rc1 {[%clk 0:00:00]}  Rxc1+ {[%clk 0:00:00]} 27. Qxc1 {[%clk 0:00:00]}  Qc5 {[%clk 0:00:00]} 28. Qxc5 {[%clk 0:00:00]}  bxc5 {[%clk 0:00:00]} 29. Nc2 {[%clk 0:00:00]}  f5 {[%clk 0:00:00]} 30. Kf1 {[%clk 0:00:00]}  Kf7 {[%clk 0:00:00]} 31. Ke1 {[%clk 0:00:00]}  Ke6 {[%clk 0:00:00]} 32. Kd2 {[%clk 0:00:00]}  Kd5 {[%clk 0:00:00]} 33. Kc3 {[%clk 0:00:00]}  a5 {[%clk 0:00:00]} 34. Na3 {[%clk 0:00:00]}  g5 {[%clk 0:00:00]} 35. Nb5 {[%clk 0:00:00]}  f4 {[%clk 0:00:00]} 36. Nc7+ {[%clk 0:00:00]}  Kd6 {[%clk 0:00:00]} 37. Ne8+ {[%clk 0:00:00]}  Ke7 {[%clk 0:00:00]} 38. Ng7 {[%clk 0:00:00]}  f3 {[%clk 0:00:00]} 39. Bf1 {[%clk 0:00:00]}  Kf6 {[%clk 0:00:00]} 40. Nh5+ {[%clk 0:00:00]}  Kg6 {[%clk 0:00:00]} 41. g4 {[%clk 0:00:00]}  Bc8 {[%clk 0:00:00]} 42. Ng3 {[%clk 0:00:00]}  Nf7 {[%clk 0:00:00]} 43. Nxe4 {[%clk 0:00:00]}  Bb7 {[%clk 0:00:00]} 44. Nxc5 {[%clk 0:00:00]} 1-0


[Site "https://www.chess.com"]

[Event "Titled Tuesday Blitz August 16 Early 2022"]
[White "Iljin, Timofey"]
[Black "Ziatdinov, Raset"]
[WhiteFideId "14110180"]
[BlackFideId "2015323"]
[WhiteElo "2404"]
[BlackElo "2220"]
[Result "1-0"]
[Round "10"]
[TimeControl "180+2"]
[Date "2022.08.18"]
[WhiteClock "0:00:00"]
[BlackClock "0:00:00"]

1. d4 {[%clk 0:00:00]}  Nf6 {[%clk 0:00:00]} 2. c4 {[%clk 0:00:00]}  g6 {[%clk 0:00:00]} 3. Nc3 {[%clk 0:00:00]}  Bg7 {[%clk 0:00:00]} 4. e4 {[%clk 0:00:00]}  d6 {[%clk 0:00:00]} 5. f4 {[%clk 0:00:00]}  O-O {[%clk 0:00:00]} 6. Nf3 {[%clk 0:00:00]}  c5 {[%clk 0:00:00]} 7. d5 {[%clk 0:00:00]}  e5 {[%clk 0:00:00]} 8. fxe5 {[%clk 0:00:00]}  dxe5 {[%clk 0:00:00]} 9. Bd3 {[%clk 0:00:00]}  Bg4 {[%clk 0:00:00]} 10. O-O {[%clk 0:00:00]}  Nbd7 {[%clk 0:00:00]} 11. Be3 {[%clk 0:00:00]}  Nh5 {[%clk 0:00:00]} 12. h3 {[%clk 0:00:00]}  Bxf3 {[%clk 0:00:00]} 13. Qxf3 {[%clk 0:00:00]}  Qc7 {[%clk 0:00:00]} 14. a3 {[%clk 0:00:00]}  Rae8 {[%clk 0:00:00]} 15. b4 {[%clk 0:00:00]}  b6 {[%clk 0:00:00]} 16. Nb5 {[%clk 0:00:00]}  Qb8 {[%clk 0:00:00]} 17. Rab1 {[%clk 0:00:00]}  a6 {[%clk 0:00:00]} 18. Nc3 {[%clk 0:00:00]}  Qc7 {[%clk 0:00:00]} 19. Na4 {[%clk 0:00:00]}  Rb8 {[%clk 0:00:00]} 20. bxc5 {[%clk 0:00:00]}  Nxc5 {[%clk 0:00:00]} 21. Nxc5 {[%clk 0:00:00]}  bxc5 {[%clk 0:00:00]} 22. Rxb8 {[%clk 0:00:00]}  Rxb8 {[%clk 0:00:00]} 23. Qf2 {[%clk 0:00:00]}  Rb3 {[%clk 0:00:00]} 24. Bc2 {[%clk 0:00:00]}  Rxa3 {[%clk 0:00:00]} 25. Bxc5 {[%clk 0:00:00]}  Rc3 {[%clk 0:00:00]} 26. Bb6 {[%clk 0:00:00]}  Qxc4 {[%clk 0:00:00]} 27. Qxf7+ {[%clk 0:00:00]}  Kh8 {[%clk 0:00:00]} 28. Qe8+ {[%clk 0:00:00]} 1-0


[Site "https://www.chess.com"]